fUST/lending_fUST_20260129
["ID","MTS","AMOUNT","RATE_DAILY","PERIOD"]
[403892616,1769638241761,-1957.856,0.00029159,2]
[403892617,1769638241770,-4246.65524428,0.00029159,2]
[403892618,1769638241779,-2030.296672,0.00029214,2]
[403892619,1769638241788,-730.0,0.00029252,3]
[403892620,1769638241798,-2105.41764886,0.00029269,2]
[403892621,1769638241807,-1459.38,0.000293,14]
[403892622,1769638241816,-2183.31810187,0.00029324,2]
[403892623,1769638241826,-2264.10087164,0.00029379,2]
[403892624,1769638241835,-1000.0,0.000294,5]
[403892625,1769638241844,-951.69331072,0.0002942,2]
[403892626,1769638241854,-5000.0,0.00029434,23]
[403892627,1769638241863,-2347.87260389,0.00029434,2]
[403892628,1769638241872,-400.0,0.00029459,3]
[403892629,1769638241881,-800.0,0.00029469,2]
[403892630,1769638241890,-2434.74389024,0.00029489,2]
[403892631,1769638241900,-12825.24,0.00029496,30]
[403892632,1769638241909,-161.0,0.00029542,3]
[403892633,1769638241919,-500.0,0.0002958,7]
[403892634,1769638241928,-550.0,0.00029589,5]
[403892635,1769638241937,-236.57189686,0.00029589,5]
[403892636,1769638241947,-800.0,0.00029846,2]
[403892637,1769638241957,-163.0,0.00029863,36]
[403892638,1769638241967,-400.0,0.00029869,3]
[403892639,1769638241977,-1000.0,0.000299,5]
[403892640,1769638241986,-1043.65606314,0.00029963,2]
[403892641,1769638241995,-1000.0,0.0003,14]
[403892642,1769638242005,-167.0,0.0003,14]
[403892643,1769638242014,-1021.0,0.0003,7]
[403892644,1769638242023,-190.0,0.0003,14]
[403892645,1769638242033,-1000.0,0.0003,14]
[403892646,1769638242042,-178.5494496,0.0003,14]
[403892647,1769638242052,-151.0,0.0003,14]
[403892648,1769638242061,-1000.0,0.00030056,14]
[403892649,1769638242070,-151.0,0.00030079,14]
[403892650,1769638242080,-3183.59511754,0.000301,2]
[403892651,1769638242089,-1000.0,0.00030111,14]
[403892652,1769638242098,-175.20269643,0.00030137,2]
[403892653,1769638242107,-650.0,0.00030137,5]
[403892654,1769638242116,-623.06341051,0.00030137,120]
[403892655,1769638242125,-151.0,0.00030157,14]
[403892656,1769638242135,-1000.0,0.00030167,14]
[403892657,1769638242144,-1000.0,0.00030222,14]
[403892658,1769638242153,-151.0,0.00030236,14]
[403892659,1769638242162,-1000.0,0.00030278,14]
[403892660,1769638242170,-168.0,0.00030284,2]
[403892661,1769638242180,-1000.0,0.00030315,14]
[403892662,1769638242189,-151.0,0.00030315,14]
[403892663,1769638242199,-1000.0,0.00030333,14]
[403892664,1769638242207,-1000.0,0.00030389,14]
[403892665,1769638242216,-151.0,0.00030393,14]
[403892666,1769638242225,-1000.0,0.000304,5]
[403892667,1769638242234,-190.0,0.00030411,14]
[403892668,1769638242243,-297.5,0.0003044,120]
[403892669,1769638242252,-1000.0,0.00030444,14]
[403892670,1769638242261,-151.0,0.00030472,14]
[403892671,1769638242270,-1000.0,0.000305,14]
[403892672,1769638242279,-276.12088692,0.00030518,2]
[403892673,1769638242288,-621554.77,0.00030533,7]
[403892674,1769638242297,-73017.81,0.00030533,7]
[403892675,1769638242306,-151.0,0.00030551,14]
[403892676,1769638242315,-1000.0,0.00030555,14]
[403892677,1769638242325,-157.72,0.000306,2]
[403892678,1769638242334,-21590.59692259,0.000306,2]
[403892679,1769638242343,-1000.0,0.00030611,14]
[403892680,1769638242352,-160.0,0.00030613,4]
[403892681,1769638242361,-1000.0,0.00030629,14]
[403892682,1769638242370,-151.0,0.00030629,14]
[403892683,1769638242380,-1000.0,0.00030666,14]
[403892684,1769638242389,-400.0,0.00030682,3]
[403892685,1769638242398,-750.0,0.00030685,5]
[403892686,1769638242407,-168.0,0.00030697,2]
[403892687,1769638242417,-151.0,0.00030699,4]
[403892688,1769638242427,-151.0,0.00030699,4]
[403892689,1769638242436,-730.21831224,0.00030699,4]
[403892690,1769638242445,-261.79283996,0.00030699,4]
[403892691,1769638242455,-2312.83697232,0.00030699,4]
[403892692,1769638242465,-2398.4119403,0.00030699,4]
[403892693,1769638242474,-174.61919141,0.00030699,4]
[403892694,1769638242483,-2487.15318209,0.00030699,4]
[403892695,1769638242492,-181.08010149,0.00030699,4]
[403892696,1769638242502,-2579.17784983,0.00030699,4]
[403892697,1769638242511,-187.78006525,0.00030699,4]
[403892698,1769638242519,-2674.60743027,0.00030699,4]
[403892699,1769638242529,-194.72792766,0.00030699,4]
[403892700,1769638242538,-2773.56790519,0.00030699,4]
[403892701,1769638242547,-201.93286099,0.00030699,4]
[403892702,1769638242556,-174.61919141,0.00030699,4]
[403892703,1769638242565,-209.40437684,0.00030699,4]
[403892704,1769638242574,-217.15233878,0.00030699,4]
[403892705,1769638242583,-225.18697532,0.00030699,4]
[403892706,1769638242592,-500.0,0.00030699,4]
[403892707,1769638242601,-233.51889341,0.00030699,4]
[403892708,1769638242609,-478.75725327,0.00030699,4]
[403892709,1769638242618,-578.20924308,0.00030699,4]
[403892710,1769638242626,-500.0,0.00030699,4]
[403892711,1769638242635,-242.15909246,0.00030699,4]
[403892712,1769638242644,-496.47127164,0.00030699,4]
[403892713,1769638242652,-599.60298507,0.00030699,4]
[403892714,1769638242661,-251.11897888,0.00030699,4]
[403892715,1769638242670,-514.84070869,0.00030699,4]
[403892716,1769638242679,-621.78829552,0.00030699,4]
[403892717,1769638242687,-260.4103811,0.00030699,4]
[403892718,1769638242696,-533.88981491,0.00030699,4]
[403892719,1769638242705,-393.96445136,0.00030699,4]
[403892720,1769638242714,-270.0455652,0.00030699,4]
[403892721,1769638242723,-553.64373807,0.00030699,4]
[403892722,1769638242732,-280.03725112,0.00030699,4]
[403892723,1769638242741,-290.39862941,0.00030699,4]
[403892724,1769638242750,-574.12855637,0.00030699,4]
[403892725,1769638242759,-301.1433787,0.00030699,4]
[403892726,1769638242769,-595.37131296,0.00030699,4]
[403892727,1769638242781,-617.40005154,0.00030699,4]
[403892728,1769638242798,-640.24385345,0.00030699,4]
[403892729,1769638242807,-594.35199126,0.00030699,4]
[403892730,1769638242816,-250.0,0.00030699,4]
[403892731,1769638242825,-181.08010149,0.00030699,4]
[403892732,1769638242834,-169.33681227,0.00030699,4]
[403892733,1769638242843,-151.0,0.00030699,4]
[403892734,1769638242851,-151.0,0.00030699,4]
[403892735,1769638242860,-151.0,0.00030699,4]
[403892736,1769638242869,-151.0,0.00030699,4]
[403892737,1769638242878,-151.0,0.00030699,4]
[403892738,1769638242886,-151.0,0.00030699,4]
[403892739,1769638242895,-151.0,0.00030699,4]
[403892740,1769638242904,-151.0,0.00030699,4]
[403892741,1769638242913,-151.0,0.00030699,4]
[403892742,1769638242922,-151.0,0.00030699,4]
[403892743,1769638242932,-151.0,0.00030699,4]
[403892744,1769638242942,-151.0,0.00030699,4]
[403892745,1769638242951,-178.9805666,0.00030699,4]
[403892746,1769638242962,-250.0,0.00030699,4]
[403892747,1769638242976,-151.0,0.00030699,4]
[403892748,1769638242985,-151.0,0.00030699,4]
[403892749,1769638242994,-151.0,0.00030699,4]
[403892750,1769638243003,-151.0,0.00030699,4]
[403892751,1769638243013,-161.04,0.000307,7]
[403892752,1769638243022,-889.75988992,0.000307,2]
[403892753,1769638243031,-3559.03955968,0.000307,2]
[403892754,1769638243041,-310.84831596,0.000307,2]
[403892755,1769638243050,-1243.39326385,0.000307,2]
[403892756,1769638243058,-2797.63484367,0.000307,2]
[403892757,1769638243067,-4973.57305542,0.000307,2]
[403892758,1769638243076,-7771.20789909,0.000307,2]
[403892759,1769638243086,-163.65805784,0.000307,2]
[403892760,1769638243095,-654.63223138,0.000307,2]
[403892761,1769638243104,-1472.9225206,0.000307,2]
[403892762,1769638243113,-2618.52892551,0.000307,2]
[403892763,1769638243122,-4091.45144611,0.000307,2]
[403892764,1769638243131,-5891.69008241,0.000307,2]
[403892765,1769638243140,-8019.24483438,0.000307,2]
[403892766,1769638243149,-10474.11570205,0.000307,2]
[403892767,1769638243158,-250.0,0.000307,10]
[403892768,1769638243167,-158656.38583447,0.000307,6]
[403892769,1769638243177,-2281.52715518,0.00030705,7]
[403892770,1769638243187,-1649.7582083,0.00030705,7]
[403892771,1769638243196,-854.83974884,0.00030705,7]
[403892773,1769638243206,-6122.40253132,0.00030705,7]
[403892774,1769638243214,-151.0,0.00030708,14]
[403892775,1769638243223,-1000.0,0.00030722,14]
[403892776,1769638243232,-14428.39,0.00030757,30]
[403892777,1769638243242,-1000.0,0.00030777,14]
[403892778,1769638243251,-151.0,0.00030787,14]
[403892779,1769638243260,-1369.0,0.00030797,2]
[403892780,1769638243269,-630.0,0.00030797,2]
[403892781,1769638243278,-293.17,0.000308,7]
[403892782,1769638243287,-250.0,0.000308,10]
[403892783,1769638243296,-160.09522763,0.00030802,10]
[403892784,1769638243305,-151.0,0.00030803,31]
[403892785,1769638243314,-298.670512,0.00030803,31]
[403892786,1769638243323,-1000.0,0.00030833,14]
[403892787,1769638243332,-151.0,0.00030865,14]
[403892788,1769638243340,-219.52815428,0.00030877,30]
[403892789,1769638243349,-1069.829058,0.0003088,6]
[403892790,1769638243358,-1000.0,0.00030888,14]
[403892791,1769638243367,-3446.2941384,0.00030895,2]
[403892792,1769638243376,-1391.8249567,0.00030897,2]
[403892793,1769638243385,-10414.1167744,0.00030897,2]
[403892794,1769638243393,-206.36876951,0.00030899,10]
[403892795,1769638243402,-1000.0,0.000309,6]
[403892796,1769638243411,-1000.0,0.000309,5]
[403892797,1769638243419,-250.0,0.000309,10]
[403892798,1769638243428,-181.272262,0.000309,31]
[403892799,1769638243437,-288.165348,0.000309,31]
[403892800,1769638243446,-779.0,0.000309,2]
[403892801,1769638243455,-250.000238,0.000309,31]
[403892802,1769638243464,-250.000238,0.000309,31]
[403892803,1769638243473,-250.000238,0.000309,31]
[403892804,1769638243483,-250.000238,0.000309,31]
[403892805,1769638243491,-1926118.52405784,0.000309,30]
[403892806,1769638243631,-151.0,0.00030699,4]
[403892807,1769638243641,-1175.66510949,0.000309,30]
[403892808,1769638243652,-1473.19474389,0.000309,30]
[403892814,1769638243870,-508.09648312,0.000309,30]
[403892815,1769638243881,-10506.92829731,0.000309,30]
[403892816,1769638243892,-436.73908453,0.000309,30]
[403892818,1769638243903,-415.20624435,0.000309,30]
[403892820,1769638243914,-22806.38983847,0.000309,30]
[403892821,1769638243925,-1504.3502,0.000309,30]
[403892822,1769638243935,-14184.76249413,0.000309,30]
[403892823,1769638243946,-2439.32849533,0.000309,30]
[403892824,1769638243962,-21983.6882601,0.000309,30]
[403892825,1769638243973,-6560.50386647,0.000309,30]
[403892871,1769638246592,-33056.03532177,0.000309,30]
[403894520,1769638272496,297.5,0.00029944,120]
[403894524,1769638998180,2900.0,0.00030137,120]
[403894536,1769639290978,188.54129581,0.0001,2]
[403894589,1769639431477,-236.455,0.00011617,2]
[403894591,1769639431487,-355.97688722,0.00011632,2]
[403894592,1769639431496,-305.55988621,0.00011753,2]
[403894593,1769639431505,-75.00822657,0.00011753,2]
[403894601,1769639431590,-224.99177343,0.00011753,2]
[403894603,1769639431599,-264.00822657,0.00011753,2]
[403894607,1769639431625,-935.99177343,0.00011753,2]
[403894608,1769639431634,-1010.7776287,0.00011753,2]
[403894609,1769639431643,-1373.99704232,0.00011754,2]
[403894614,1769639437690,-1432.62840904,0.00011754,2]
[403894615,1769639437702,-1717193.37454864,0.00011754,2]
[403894616,1769639437711,-151.0,0.000119,2]
[403894617,1769639437721,-151.0,0.000119,2]
[403894618,1769639437730,-151.0,0.000119,2]
[403894619,1769639437739,-151.0,0.000119,2]
[403894620,1769639437748,-151.0,0.000119,2]
[403894621,1769639437758,-151.0,0.000119,2]
[403894623,1769639437768,-151.0,0.000119,2]
[403894625,1769639437778,-151.0,0.000119,2]
[403894627,1769639437787,-151.0,0.000119,2]
[403894629,1769639437797,-151.0,0.000119,2]
[403894631,1769639437806,-151.0,0.000119,2]
[403894632,1769639437815,-151.0,0.000119,2]
[403894633,1769639437824,-151.0,0.000119,2]
[403894634,1769639437838,-151.0,0.000119,2]
[403894635,1769639437847,-151.0,0.000119,2]
[403894636,1769639437856,-151.0,0.000119,2]
[403894637,1769639437866,-151.0,0.000119,2]
[403894638,1769639437875,-151.0,0.000119,2]
[403894639,1769639437884,-151.0,0.000119,2]
[403894640,1769639437894,-151.0,0.000119,2]
[403894641,1769639437903,-151.0,0.000119,2]
[403894642,1769639437912,-151.0,0.000119,2]
[403894643,1769639437922,-389.95699981,0.00012057,2]
[403894644,1769639437931,-300.0,0.0001209,2]
[403894645,1769639437940,-300.0,0.0001209,2]
[403894646,1769639437949,-300.0,0.0001209,2]
[403894647,1769639437958,-300.0,0.0001209,2]
[403894650,1769639438109,-300.0,0.0001209,2]
[403894651,1769639438129,-300.0,0.0001209,2]
[403894652,1769639438138,-300.0,0.0001209,2]
[403894653,1769639438148,-300.0,0.0001209,2]
[403894654,1769639438157,-300.0,0.0001209,2]
[403894655,1769639438166,-300.0,0.0001209,2]
[403894656,1769639438176,-300.0,0.0001209,2]
[403894657,1769639438185,-300.0,0.0001209,2]
[403894658,1769639438195,-300.0,0.0001209,2]
[403894659,1769639438205,-300.0,0.0001209,2]
[403894660,1769639438214,-300.0,0.0001209,2]
[403894661,1769639438223,-600.0,0.0001209,2]
[403894662,1769639438236,-1010.77762868,0.00012333,2]
[403894663,1769639438245,-50000.56310499,0.00012843,2]
[403894664,1769639438255,-420.0,0.00012905,2]
[403894665,1769639438264,-1010.77762868,0.00012912,2]
[403894666,1769639438275,-500.0,0.00012999,2]
[403894667,1769639438284,-2736.94264847,0.00013,2]
[403894668,1769639438293,-500.0,0.00013136,2]
[403894669,1769639438303,-257.53367083,0.00013137,2]
[403894670,1769639438313,-500.0,0.00013273,2]
[403894671,1769639438323,-507.06964924,0.00013273,2]
[403894672,1769639438332,-500.0,0.00013273,2]
[403894673,1769639438341,-500.0,0.00013273,2]
[403894674,1769639438351,-500.0,0.00013273,2]
[403894675,1769639438360,-550.0,0.00013273,2]
[403894676,1769639438369,-720.0,0.00013299,2]
[403894677,1769639438378,-500.0,0.00013424,2]
[403894678,1769639438387,-500.0,0.00013424,2]
[403894679,1769639438397,-500.0,0.00013424,2]
[403894680,1769639438406,-500.0,0.00013424,2]
[403894681,1769639438415,-174.55748242,0.00013424,2]
[403894682,1769639438424,-43237.65234112,0.00013479,2]
[403894683,1769639438433,-1010.77762868,0.00013492,2]
[403894684,1769639438442,-160.95757695,0.00013547,2]
[403894685,1769639438451,-500.0,0.00013561,2]
[403894686,1769639438460,-500.0,0.00013561,2]
[403894687,1769639438469,-500.0,0.00013561,2]
[403894688,1769639438479,-500.0,0.00013561,2]
[403894689,1769639438488,-420.05272692,0.00013632,2]
[403894690,1769639438498,-300.0,0.00013673,2]
[403894691,1769639438507,-250.0,0.00013684,2]
[403894692,1769639438517,-500.0,0.00013698,2]
[403894693,1769639438526,-201.34473985,0.00013698,2]
[403894694,1769639438535,-500.0,0.00013698,2]
[403894695,1769639438545,-500.0,0.00013698,2]
[403894696,1769639438554,-600.0,0.00013698,2]
[403894697,1769639438563,-500.0,0.00013698,2]
[403894698,1769639438573,-500.0,0.00013698,2]
[403894699,1769639438582,-500.0,0.00013698,2]
[403894700,1769639438592,-500.0,0.00013698,2]
[403894701,1769639438601,-500.0,0.00013698,2]
[403894702,1769639438611,-500.0,0.00013698,2]
[403894703,1769639438621,-500.0,0.00013698,2]
[403894704,1769639438631,-500.0,0.00013698,2]
[403894705,1769639438640,-500.0,0.00013698,2]
[403894706,1769639438650,-500.0,0.00013698,2]
[403894707,1769639438660,-500.0,0.00013698,2]
[403894708,1769639438669,-500.0,0.00013698,2]
[403894709,1769639438679,-500.0,0.00013698,2]
[403894710,1769639438688,-500.0,0.00013698,2]
[403894711,1769639438698,-500.0,0.00013698,2]
[403894712,1769639438707,-500.0,0.00013698,2]
[403894713,1769639438716,-500.0,0.00013698,2]
[403894714,1769639438726,-500.0,0.00013698,2]
[403894715,1769639438736,-500.0,0.00013698,2]
[403894716,1769639438746,-500.0,0.00013698,2]
[403894717,1769639438756,-640.58071433,0.00013698,2]
[403894718,1769639438765,-500.0,0.00013699,2]
[403894719,1769639438774,-500.0,0.00013699,2]
[403894720,1769639438784,-500.0,0.00013699,2]
[403894721,1769639438793,-500.0,0.00013699,2]
[403894722,1769639438803,-500.0,0.00013699,2]
[403894723,1769639438812,-421.30369645,0.00013699,2]
[403894724,1769639438822,-355.419529,0.00013821,2]
[403894725,1769639438832,-1000.0,0.00013821,2]
[403894726,1769639438842,-1000.0,0.00013821,2]
[403894727,1769639438851,-1000.0,0.00013821,2]
[403894728,1769639438860,-500.0,0.00013835,2]
[403894729,1769639438870,-503.23543832,0.00013835,2]
[403894730,1769639438880,-500.0,0.00013835,2]
[403894731,1769639438889,-100000.0,0.00014006,2]
[403894732,1769639438899,-1010.77762868,0.00014071,2]
[403894733,1769639438909,-587.0,0.00014171,2]
[403894734,1769639438918,-600.0,0.00014221,2]
[403894735,1769639438927,-341.02216059,0.00014247,2]
[403894736,1769639438937,-1000.0,0.00014247,2]
[403894737,1769639438947,-1000.0,0.00014247,2]
[403894738,1769639438955,-1134.23032778,0.00014247,2]
[403894739,1769639438964,-722.3651231,0.00014247,2]
[403894740,1769639438974,-272.20008225,0.00014335,2]
[403894741,1769639438983,-1500.0,0.00014368,2]
[403894742,1769639438993,-1500.0,0.00014368,2]
[403894743,1769639439002,-1500.0,0.00014368,2]
[403894744,1769639439011,-864.0,0.00014629,2]
[403894745,1769639439021,-900.0,0.00014768,2]
[403894746,1769639439031,-280.60051547,0.00014773,2]
[403894747,1769639439040,-1500.0,0.00014795,2]
[403894748,1769639439050,-500.0,0.00014795,2]
[403894749,1769639439059,-595.91731816,0.000149,2]
[403894750,1769639439069,-2000.0,0.00014916,2]
[403894751,1769639439078,-2000.0,0.00014916,2]
[403894752,1769639439087,-2074.12268118,0.00014916,2]
[403894753,1769639439097,-1020.62629067,0.00015,2]
[403894754,1769639439107,-90000.0,0.00015,2]
[403894755,1769639439116,-40878.38369255,0.00015,2]
[403894756,1769639439126,-151.23745507,0.00015,2]
[403894757,1769639439135,-1200.0,0.00015316,2]
[403894758,1769639439145,-9779.13,0.00015342,2]
[403894759,1769639439154,-2000.0,0.00015342,2]
[403894760,1769639439164,-250.0,0.0001535,2]
[403894761,1769639439173,-1935579.58513354,0.000154,2]
[403894762,1769639439183,-2500.0,0.00015464,2]
[403894763,1769639439192,-2500.0,0.00015464,2]
[403894764,1769639439201,-823.0,0.0001556,2]
[403894765,1769639439211,-484.12856661,0.00015632,2]
[403894766,1769639439221,-5038.08922706,0.0001564,2]
[403894767,1769639439233,-15945.513655,0.00015847,2]
[403894768,1769639439245,-993.63223956,0.00015864,2]
[403894769,1769639439256,-2500.0,0.0001589,2]
[403894770,1769639439265,-216.23346271,0.00016,2]
[403894771,1769639439278,-3000.0,0.00016012,2]
[403894772,1769639439287,-1702.90287346,0.00016012,2]
[403894773,1769639439297,-1000.0,0.00016092,2]
[403894774,1769639439308,-200.0,0.00016438,2]
[403894775,1769639439317,-500.0,0.00016438,2]
[403894776,1769639439327,-474.54159977,0.00016438,2]
[403894777,1769639439337,-150.42150351,0.00016438,2]
[403894778,1769639439346,-164.57351573,0.00016438,2]
[403894779,1769639439355,-3000.0,0.00016438,2]
[403894780,1769639439364,-200.0,0.00016473,2]
[403894781,1769639439374,-1000.0,0.0001656,2]
[403894782,1769639439382,-3500.0,0.00016986,2]
[403894783,1769639439391,-92124.15564802,0.00017,2]
[403894784,1769639439402,-160.0,0.00017011,2]
[403894785,1769639439411,-160.0,0.00017011,2]
[403894786,1769639439420,-1041.66666667,0.00017011,2]
[403894787,1769639439429,-1152.0,0.00017086,2]
[403894788,1769639439438,-297.05722388,0.0001726,3]
[403894789,1769639439448,-4000.0,0.00017534,2]
[403894790,1769639439457,-2141.16843233,0.000176,2]
[403894791,1769639439466,-548.20440631,0.00017632,2]
[403894792,1769639439475,-1000.0,0.00017701,2]
[403894793,1769639439484,-244.0,0.00017701,2]
[403894795,1769639439493,-150.12313849,0.00017808,2]
[403894797,1769639439502,-281.81382901,0.00017842,2]
[403894799,1769639439511,-135573.83356864,0.00018,2]
[403894800,1769639439520,-126062.66862741,0.00018,2]
[403894802,1769639439529,-4500.0,0.00018082,2]
[403894804,1769639439538,-9548.19578351,0.000183,3]
[403894806,1769639439547,-4694.85911576,0.0001863,2]
[403894808,1769639439556,-1613.0,0.00018761,2]
[403894810,1769639439566,-198.0,0.00018904,3]
[403894812,1769639439575,-69497.33252454,0.00019,2]
[403894814,1769639439584,-2603.49,0.00019,2]
[403894816,1769639439593,-11694.55470091,0.00019,2]
[403894818,1769639439601,-508.0614,0.00019178,2]
[403894820,1769639439610,-200.0,0.00019178,2]
[403894822,1769639439620,-508.0614,0.00019178,2]
[403894824,1769639439629,-508.0614,0.00019178,2]
[403894826,1769639439637,-1103.19,0.00019178,2]
[403894828,1769639439646,-1459.38,0.000193,2]
[403894830,1769639439655,-6249.64,0.000193,2]
[403894832,1769639439664,-250.0,0.00019471,2]
[403894834,1769639439673,-200.34117545,0.00019471,2]
[403894836,1769639439681,-1000.0,0.00019471,2]
[403894838,1769639439690,-492.0,0.00019471,2]
[403894840,1769639439699,-172.01,0.000195,2]
[403894842,1769639439708,-161.04,0.000195,2]
[403894844,1769639439717,-508.0614,0.00019589,3]
[403894846,1769639439728,-508.0614,0.00019589,3]
[403894848,1769639439737,-508.0614,0.00019589,3]
[403894850,1769639439746,-612.28024601,0.00019632,2]
[403894851,1769639439754,-9149.36037276,0.0002,2]
[403894853,1769639439763,-406.20341507,0.0002,30]
[403894856,1769639439772,-70910.98503129,0.0002,2]
[403894857,1769639439781,-379571.27098759,0.0002,2]
[403894859,1769639439790,-288.165348,0.0002,2]
[403894861,1769639439799,-201.250084,0.0002,2]
[403894863,1769639439809,-201.250084,0.0002,2]
[403894865,1769639439818,-201.250084,0.0002,2]
[403894867,1769639439827,-201.250084,0.0002,2]
[403894870,1769639439838,-656.05350674,0.0002,7]
[403894871,1769639439848,-294.93254528,0.0002045,30]
[403894873,1769639439857,-201.0,0.00020548,3]
[403894875,1769639439866,-1886.0,0.00020601,2]
[403894877,1769639439876,-1010.328615,0.00020676,7]
[403894880,1769639439886,-508.0614,0.00020822,6]
[403894881,1769639439894,-508.0614,0.00020822,6]
[403894883,1769639439903,-508.0614,0.00020822,6]
[403894885,1769639439912,-1000.0,0.00021418,10]
[403894887,1769639439921,-791.0,0.00021418,10]
[403894889,1769639439930,-676.35608571,0.00021632,2]
[403894891,1769639439939,-203.0,0.00022192,6]
[403894893,1769639439949,-288.665318,0.0002233,30]
[403894895,1769639439958,-293.17,0.00023,7]
[403894897,1769639439968,-157.72,0.00023,2]
[403894899,1769639439977,-1041.66666667,0.00023,3]
[403894901,1769639439986,-160.0,0.00023,3]
[403894903,1769639439995,-151.0,0.00023288,2]
[403894905,1769639440004,-151.0,0.00023288,2]
[403894907,1769639440013,-250.000238,0.00023288,2]
[403894909,1769639440022,-151.0,0.00023288,2]
[403894910,1769639440031,-181.272262,0.00023288,2]
[403894911,1769639440040,-250.000238,0.00023288,2]
[403894912,1769639440049,-253.42086,0.00023288,2]
[403894914,1769639440059,-250.000238,0.00023288,2]
[403894915,1769639440068,-250.000238,0.00023288,2]
[403894916,1769639440077,-1000.0,0.0002356,10]
[403894918,1769639440087,-1000.0,0.0002356,10]
[403894920,1769639440096,-740.43192541,0.00023632,2]
[403894921,1769639440105,-205.0,0.00023836,11]
[403894922,1769639440115,-295.17750857,0.00024,60]
[403894923,1769639440124,-2130.56925146,0.00024142,2]
[403894924,1769639440133,-500.0,0.00024658,2]
[403894925,1769639440142,-3894.774506,0.00024795,30]
[403894926,1769639440151,-500.0,0.00024795,2]
[403894927,1769639440161,-615285.003744,0.000249,2]
[403894928,1769639440170,-500.0,0.00024932,2]
[403894929,1769639440179,-18591.97366051,0.00025,30]
[403894930,1769639440187,-1041.66666667,0.00025,30]
[403894931,1769639440196,-605.0,0.00025069,2]
[403894932,1769639440205,-350.0,0.00025205,2]
[403894933,1769639440215,-168.1,0.000253,7]
[403894934,1769639440224,-900.0,0.00025469,3]
[403894935,1769639440233,-207.0,0.00025479,16]
[403894936,1769639440246,-1000.0,0.000255,2]
[403894937,1769639440255,-804.50776511,0.00025632,2]
[403894938,1769639440264,-1000.0,0.00025916,10]
[403894939,1769639440273,-1000.0,0.00025916,10]
[403894940,1769639440282,-579.0,0.00025916,10]
[403894941,1769639440291,-153000.00000066,0.00026,30]
[403894942,1769639440300,-1041.66666667,0.00026,30]
[403894943,1769639440312,-184.95386914,0.00026684,5]
[403894944,1769639440322,-157.26127169,0.00026684,5]
[403894945,1769639440331,-1112.792716,0.00026779,30]
[403894946,1769639440340,-1041.66666667,0.000268,30]
[403894947,1769639440348,-1459.38,0.000269,14]
[403894948,1769639440359,-6249.64,0.000269,2]
[403894949,1769639440368,-1021.0,0.00027,2]
[403894950,1769639440377,-276.13,0.00027036,2]
[403894951,1769639440386,-155.0,0.00027123,23]
[403894952,1769639440395,-157.1173049,0.00027397,2]
[403894953,1769639440404,-184.95386914,0.0002751,5]
[403894954,1769639440414,-868.58360481,0.00027632,2]
[403894955,1769639440423,-1071.528267,0.000279,5]
[403894956,1769639440432,-276.12,0.00027945,2]
[403894957,1769639440442,-250.0,0.00027945,5]
[403894958,1769639440452,-250.0,0.00027945,5]
[403894959,1769639440462,-1021.0,0.00028,2]
[403894960,1769639440473,-155.0,0.00028219,28]
[403894961,1769639440483,-184.95386914,0.0002836,5]
[403894962,1769639440491,-1000.0,0.000284,5]
[403894963,1769639440500,-350.0,0.00028493,5]
[403894964,1769639440511,-350.0,0.00028493,5]
[403894965,1769639440520,-75621.61027573,0.000285,7]